[Event "Titled Tuesday Blitz April 25 Early 2023"]
[White "Ruge, Edison"]
[Black "Alexikov, Alexander"]
[WhiteFideId "4401000"]
[BlackFideId "14103958"]
[WhiteElo "2175"]
[BlackElo "2186"]
[Result "0-1"]
[Round "03"]
[TimeControl "180+2"]
[Date "2023.04.25"]
[WhiteClock "0:00:16"]
[BlackClock "0:00:34"]

1. e4 {[%clk 0:03:00]}  c5 {[%clk 0:02:59]} 2. Nc3 {[%clk 0:02:59]}  Nc6 {[%clk 0:02:57]} 3. f4 {[%clk 0:03:00]}  d6 {[%clk 0:02:57]} 4. Nf3 {[%clk 0:03:00]}  e6 {[%clk 0:02:56]} 5. Bb5 {[%clk 0:03:01]}  Ne7 {[%clk 0:02:54]} 6. Bxc6+ {[%clk 0:02:58]}  Nxc6 {[%clk 0:02:53]} 7. d3 {[%clk 0:02:57]}  g6 {[%clk 0:02:51]} 8. O-O {[%clk 0:02:57]}  Bg7 {[%clk 0:02:51]} 9. Qe1 {[%clk 0:02:57]}  O-O {[%clk 0:02:50]} 10. Kh1 {[%clk 0:02:57]}  a6 {[%clk 0:02:45]} 11. Be3 {[%clk 0:02:56]}  Nd4 {[%clk 0:02:44]} 12. Rc1 {[%clk 0:02:53]}  b5 {[%clk 0:02:32]} 13. Bxd4 {[%clk 0:02:53]}  cxd4 {[%clk 0:02:32]} 14. Ne2 {[%clk 0:02:53]}  e5 {[%clk 0:02:31]} 15. c3 {[%clk 0:02:45]}  dxc3 {[%clk 0:02:29]} 16. Rxc3 {[%clk 0:02:42]}  Be6 {[%clk 0:02:28]} 17. b3 {[%clk 0:02:41]}  Rc8 {[%clk 0:02:26]} 18. d4 {[%clk 0:02:15]}  Rxc3 {[%clk 0:02:16]} 19. Qxc3 {[%clk 0:02:12]}  exd4 {[%clk 0:02:12]} 20. Nexd4 {[%clk 0:02:10]}  Qc8 {[%clk 0:02:06]} 21. Rc1 {[%clk 0:02:04]}  Qxc3 {[%clk 0:02:05]} 22. Rxc3 {[%clk 0:02:02]}  Rc8 {[%clk 0:02:04]} 23. Rxc8+ {[%clk 0:02:00]}  Bxc8 {[%clk 0:02:04]} 24. Kg1 {[%clk 0:01:50]}  Bb7 {[%clk 0:01:57]} 25. e5 {[%clk 0:01:48]}  dxe5 {[%clk 0:01:56]} 26. Nxe5 {[%clk 0:01:47]}  Kf8 {[%clk 0:01:52]} 27. Kf2 {[%clk 0:01:44]}  Ke7 {[%clk 0:01:51]} 28. g3 {[%clk 0:01:43]}  f6 {[%clk 0:01:36]} 29. Nd3 {[%clk 0:01:39]}  Kd6 {[%clk 0:01:35]} 30. Ke3 {[%clk 0:01:38]}  f5 {[%clk 0:01:34]} 31. Nf3 {[%clk 0:01:33]}  Be4 {[%clk 0:01:28]} 32. Ng5 {[%clk 0:01:23]}  Bxd3 {[%clk 0:01:24]} 33. Kxd3 {[%clk 0:01:22]}  h6 {[%clk 0:01:25]} 34. Nf3 {[%clk 0:01:19]}  Bf6 {[%clk 0:01:20]} 35. h3 {[%clk 0:01:04]}  Kc5 {[%clk 0:01:16]} 36. a3 {[%clk 0:00:58]}  a5 {[%clk 0:01:15]} 37. g4 {[%clk 0:00:57]}  a4 {[%clk 0:01:05]} 38. bxa4 {[%clk 0:00:51]}  bxa4 {[%clk 0:01:05]} 39. g5 {[%clk 0:00:43]}  hxg5 {[%clk 0:01:03]} 40. fxg5 {[%clk 0:00:43]}  Be7 {[%clk 0:01:03]} 41. h4 {[%clk 0:00:38]}  Kd5 {[%clk 0:01:01]} 42. Nd4 {[%clk 0:00:30]}  Bxa3 {[%clk 0:00:53]} 43. Nb5 {[%clk 0:00:23]}  Bc5 {[%clk 0:00:45]} 44. Nc3+ {[%clk 0:00:20]}  Ke5 {[%clk 0:00:43]} 45. Nxa4 {[%clk 0:00:20]}  Bf2 {[%clk 0:00:42]} 46. h5 {[%clk 0:00:19]}  gxh5 {[%clk 0:00:41]} 47. g6 {[%clk 0:00:19]}  Kf6 {[%clk 0:00:40]} 48. Ke2 {[%clk 0:00:20]}  Bd4 {[%clk 0:00:39]} 49. Kd3 {[%clk 0:00:18]}  h4 {[%clk 0:00:38]} 50. Kxd4 {[%clk 0:00:16]}  h3 {[%clk 0:00:38]} 51. Nc3 {[%clk 0:00:16]}  h2 {[%clk 0:00:38]} 52. Nd5+ {[%clk 0:00:16]}  Kxg6 {[%clk 0:00:36]} 53. Nf4+ {[%clk 0:00:16]}  Kf7 {[%clk 0:00:34]} 0-1


[Site "https://www.chess.com"]

[Event "Titled Tuesday Blitz April 25 Early 2023"]
[White "Travadon, Loic"]
[Black "Barria Santos, Jose Guilherme"]
[WhiteFideId "26092131"]
[BlackFideId "1939300"]
[WhiteElo "2405"]
[BlackElo "2266"]
[Result "1/2-1/2"]
[Round "03"]
[TimeControl "180+2"]
[Date "2023.04.25"]
[WhiteClock "0:00:48"]
[BlackClock "0:00:23"]

1. d4 {[%clk 0:02:49]}  Nf6 {[%clk 0:02:58]} 2. c4 {[%clk 0:02:44]}  g6 {[%clk 0:02:59]} 3. g4 {[%clk 0:02:42]}  Nxg4 {[%clk 0:02:53]} 4. e4 {[%clk 0:02:42]}  d6 {[%clk 0:02:48]} 5. Be2 {[%clk 0:02:41]}  Nf6 {[%clk 0:02:47]} 6. Nc3 {[%clk 0:02:41]}  Bg7 {[%clk 0:02:47]} 7. Bg5 {[%clk 0:02:35]}  O-O {[%clk 0:02:46]} 8. Qd2 {[%clk 0:02:34]}  c5 {[%clk 0:02:44]} 9. Nf3 {[%clk 0:02:27]}  cxd4 {[%clk 0:02:43]} 10. Nxd4 {[%clk 0:02:27]}  Nc6 {[%clk 0:02:44]} 11. Nf3 {[%clk 0:02:16]}  Bg4 {[%clk 0:02:36]} 12. O-O-O {[%clk 0:02:12]}  Rc8 {[%clk 0:02:36]} 13. Bh6 {[%clk 0:02:00]}  a6 {[%clk 0:02:34]} 14. Bxg7 {[%clk 0:02:00]}  Kxg7 {[%clk 0:02:35]} 15. h4 {[%clk 0:02:00]}  Bxf3 {[%clk 0:02:27]} 16. Bxf3 {[%clk 0:01:59]}  Ne5 {[%clk 0:02:27]} 17. Be2 {[%clk 0:01:54]}  b5 {[%clk 0:02:27]} 18. h5 {[%clk 0:01:53]}  Nxc4 {[%clk 0:02:26]} 19. Bxc4 {[%clk 0:01:53]}  Rxc4 {[%clk 0:02:24]} 20. hxg6 {[%clk 0:01:53]}  fxg6 {[%clk 0:02:20]} 21. Qh6+ {[%clk 0:01:52]}  Kg8 {[%clk 0:02:20]} 22. e5 {[%clk 0:01:51]}  Nh5 {[%clk 0:01:34]} 23. Rxh5 {[%clk 0:01:50]}  gxh5 {[%clk 0:01:34]} 24. Rg1+ {[%clk 0:01:42]}  Rg4 {[%clk 0:01:32]} 25. Rxg4+ {[%clk 0:01:23]}  hxg4 {[%clk 0:01:33]} 26. Ne4 {[%clk 0:01:07]}  Qc8+ {[%clk 0:01:27]} 27. Kd1 {[%clk 0:01:04]}  dxe5 {[%clk 0:01:22]} 28. Qg5+ {[%clk 0:01:01]}  Kh8 {[%clk 0:01:20]} 29. Qxe5+ {[%clk 0:01:01]}  Kg8 {[%clk 0:01:14]} 30. Qg5+ {[%clk 0:00:55]}  Kf7 {[%clk 0:01:11]} 31. Qh5+ {[%clk 0:00:53]}  Kg8 {[%clk 0:00:38]} 32. Qg5+ {[%clk 0:00:50]}  Kh8 {[%clk 0:00:37]} 33. Qe5+ {[%clk 0:00:49]}  Kg8 {[%clk 0:00:23]} 34. Qg5+ {[%clk 0:00:48]} 1/2-1/2


[Site "https://www.chess.com"]

[Event "Titled Tuesday Blitz April 25 Early 2023"]
[White "Pandey Srishti"]
[Black "Jaivardhan Raj"]
[WhiteFideId "35093290"]
[BlackFideId "25744437"]
[WhiteElo "2083"]
[BlackElo "1772"]
[Result "0-1"]
[Round "03"]
[TimeControl "180+2"]
[Date "2023.04.25"]
[WhiteClock "0:00:07"]
[BlackClock "0:00:12"]

1. e4 {[%clk 0:03:00]}  c5 {[%clk 0:02:56]} 2. Nf3 {[%clk 0:03:00]}  e6 {[%clk 0:02:56]} 3. d4 {[%clk 0:03:00]}  cxd4 {[%clk 0:02:57]} 4. Nxd4 {[%clk 0:03:01]}  Nc6 {[%clk 0:02:57]} 5. Nc3 {[%clk 0:03:01]}  a6 {[%clk 0:02:57]} 6. Be3 {[%clk 0:02:53]}  Qc7 {[%clk 0:02:55]} 7. Qe2 {[%clk 0:02:48]}  Nf6 {[%clk 0:02:50]} 8. g4 {[%clk 0:02:46]}  Bb4 {[%clk 0:02:43]} 9. Bg2 {[%clk 0:02:45]}  Nxd4 {[%clk 0:02:40]} 10. Bxd4 {[%clk 0:02:44]}  e5 {[%clk 0:02:40]} 11. O-O-O {[%clk 0:02:12]}  exd4 {[%clk 0:02:38]} 12. Nd5 {[%clk 0:02:12]}  Nxd5 {[%clk 0:02:08]} 13. exd5+ {[%clk 0:02:13]}  Kf8 {[%clk 0:02:08]} 14. Rxd4 {[%clk 0:02:02]}  Bc5 {[%clk 0:01:51]} 15. Re1 {[%clk 0:01:44]}  g6 {[%clk 0:01:39]} 16. Rc4 {[%clk 0:01:38]}  Qd6 {[%clk 0:01:06]} 17. Qd2 {[%clk 0:01:33]}  f6 {[%clk 0:00:23]} 18. Qc3 {[%clk 0:01:14]}  b6 {[%clk 0:00:22]} 19. b4 {[%clk 0:01:12]}  Bxf2 {[%clk 0:00:12]} 20. Rf1 {[%clk 0:00:53]}  Bh4 {[%clk 0:00:12]} 21. Rxc8+ {[%clk 0:00:51]}  Rxc8 {[%clk 0:00:12]} 22. Qxc8+ {[%clk 0:00:50]}  Kg7 {[%clk 0:00:12]} 23. Qc4 {[%clk 0:00:48]}  Bg5+ {[%clk 0:00:12]} 24. Kb1 {[%clk 0:00:46]}  Rc8 {[%clk 0:00:11]} 25. Qxc8 {[%clk 0:00:31]}  Qxb4+ {[%clk 0:00:11]} 26. Ka1 {[%clk 0:00:31]}  Qd4+ {[%clk 0:00:11]} 27. c3 {[%clk 0:00:26]}  Qd2 {[%clk 0:00:10]} 28. Bf3 {[%clk 0:00:12]}  Qc2 {[%clk 0:00:09]} 29. Qxd7+ {[%clk 0:00:11]}  Kh6 {[%clk 0:00:09]} 30. Qc6 {[%clk 0:00:11]}  Bc1 {[%clk 0:00:09]} 31. g5+ {[%clk 0:00:08]}  fxg5 {[%clk 0:00:08]} 32. Qxb6 {[%clk 0:00:07]}  Qxc3+ {[%clk 0:00:08]} 33. Kb1 {[%clk 0:00:07]}  Bf4 {[%clk 0:00:09]} 34. Qb2 {[%clk 0:00:06]}  Qd3+ {[%clk 0:00:09]} 35. Qc2 {[%clk 0:00:07]}  Qxf1+ {[%clk 0:00:09]} 36. Kb2 {[%clk 0:00:08]}  Qxf3 {[%clk 0:00:09]} 37. Qc4 {[%clk 0:00:06]}  Be5+ {[%clk 0:00:09]} 38. Kc2 {[%clk 0:00:06]}  Qf2+ {[%clk 0:00:09]} 39. Kd3 {[%clk 0:00:05]}  Qf1+ {[%clk 0:00:09]} 40. Ke4 {[%clk 0:00:06]}  Qxc4+ {[%clk 0:00:09]} 41. Kxe5 {[%clk 0:00:07]}  Qxa2 {[%clk 0:00:10]} 42. d6 {[%clk 0:00:07]}  Qxh2+ {[%clk 0:00:11]} 43. Ke6 {[%clk 0:00:06]}  Qxd6+ {[%clk 0:00:11]} 44. Kxd6 {[%clk 0:00:07]}  a5 {[%clk 0:00:12]} 0-1


[Site "https://www.chess.com"]

[Event "Titled Tuesday Blitz April 25 Early 2023"]
[White "Flis, Pawel"]
[Black "Ansh M Shah"]
[WhiteFideId "1112864"]
[BlackFideId "25033379"]
[WhiteElo "1822"]
[BlackElo "2084"]
[Result "0-1"]
[Round "03"]
[TimeControl "180+2"]
[Date "2023.04.25"]
[WhiteClock "0:00:29"]
[BlackClock "0:00:30"]

1. e4 {[%clk 0:02:54]}  c6 {[%clk 0:03:00]} 2. d4 {[%clk 0:02:52]}  d5 {[%clk 0:03:01]} 3. exd5 {[%clk 0:02:53]}  cxd5 {[%clk 0:03:02]} 4. c4 {[%clk 0:02:53]}  Nf6 {[%clk 0:03:02]} 5. Nc3 {[%clk 0:02:53]}  Nc6 {[%clk 0:03:03]} 6. Nf3 {[%clk 0:02:51]}  Bg4 {[%clk 0:03:02]} 7. cxd5 {[%clk 0:02:51]}  Nxd5 {[%clk 0:03:02]} 8. Qb3 {[%clk 0:02:52]}  Bxf3 {[%clk 0:03:02]} 9. gxf3 {[%clk 0:02:52]}  e6 {[%clk 0:02:58]} 10. Qxb7 {[%clk 0:02:48]}  Nxd4 {[%clk 0:02:58]} 11. Bb5+ {[%clk 0:02:44]}  Nxb5 {[%clk 0:02:57]} 12. Qc6+ {[%clk 0:02:45]}  Ke7 {[%clk 0:02:58]} 13. Qxb5 {[%clk 0:02:40]}  Qd7 {[%clk 0:02:50]} 14. Qxd7+ {[%clk 0:02:34]}  Kxd7 {[%clk 0:02:51]} 15. Nxd5 {[%clk 0:02:34]}  exd5 {[%clk 0:02:52]} 16. Be3 {[%clk 0:02:34]}  Bb4+ {[%clk 0:02:47]} 17. Ke2 {[%clk 0:02:33]}  Rhe8 {[%clk 0:02:44]} 18. Rhd1 {[%clk 0:02:31]}  Ke6 {[%clk 0:02:43]} 19. Rac1 {[%clk 0:02:28]}  Rec8 {[%clk 0:02:36]} 20. a3 {[%clk 0:02:26]}  Bd6 {[%clk 0:02:32]} 21. h3 {[%clk 0:02:23]}  Be5 {[%clk 0:02:28]} 22. Rxc8 {[%clk 0:02:15]}  Rxc8 {[%clk 0:02:23]} 23. Rc1 {[%clk 0:02:15]}  Rc4 {[%clk 0:01:55]} 24. b3 {[%clk 0:01:58]}  Rxc1 {[%clk 0:01:17]} 25. Bxc1 {[%clk 0:01:59]}  Bd4 {[%clk 0:01:04]} 26. Be3 {[%clk 0:01:54]}  Bxe3 {[%clk 0:01:03]} 27. fxe3 {[%clk 0:01:54]}  Ke5 {[%clk 0:01:02]} 28. Kd3 {[%clk 0:01:53]}  g5 {[%clk 0:00:59]} 29. b4 {[%clk 0:01:45]}  f5 {[%clk 0:00:58]} 30. a4 {[%clk 0:01:45]}  h5 {[%clk 0:00:58]} 31. b5 {[%clk 0:01:40]}  h4 {[%clk 0:00:52]} 32. a5 {[%clk 0:01:39]}  Kd6 {[%clk 0:00:50]} 33. e4 {[%clk 0:01:08]}  dxe4+ {[%clk 0:00:41]} 34. fxe4 {[%clk 0:01:08]}  g4 {[%clk 0:00:41]} 35. exf5 {[%clk 0:00:40]}  gxh3 {[%clk 0:00:37]} 36. b6 {[%clk 0:00:39]}  axb6 {[%clk 0:00:36]} 37. axb6 {[%clk 0:00:38]}  h2 {[%clk 0:00:35]} 38. b7 {[%clk 0:00:29]}  Kc7 {[%clk 0:00:32]} 39. f6 {[%clk 0:00:29]}  h1=Q {[%clk 0:00:31]} 40. b8=Q+ {[%clk 0:00:29]}  Kxb8 {[%clk 0:00:30]} 41. f7 {[%clk 0:00:30]}  Qf3+ {[%clk 0:00:30]} 42. Kd4 {[%clk 0:00:29]}  Qxf7 {[%clk 0:00:30]} 0-1


[Site "https://www.chess.com"]

[Event "Titled Tuesday Blitz April 25 Early 2023"]
[White "littlepillow2010"]
[Black "Steenbekkers, Franck"]
[BlackFideId "1004220"]
[WhiteElo "2364"]
[BlackElo "2103"]
[Result "1-0"]
[Round "03"]
[TimeControl "180+2"]
[Date "2023.04.25"]
[WhiteClock "0:00:04"]
[BlackClock "0:01:31"]

1. e4 {[%clk 0:03:00]}  c5 {[%clk 0:03:00]} 2. Nf3 {[%clk 0:03:00]}  Nc6 {[%clk 0:03:00]} 3. d4 {[%clk 0:03:00]}  cxd4 {[%clk 0:03:01]} 4. Nxd4 {[%clk 0:03:01]}  Nf6 {[%clk 0:03:01]} 5. Nc3 {[%clk 0:03:02]}  e5 {[%clk 0:03:01]} 6. Ndb5 {[%clk 0:03:03]}  d6 {[%clk 0:03:01]} 7. Bg5 {[%clk 0:03:03]}  a6 {[%clk 0:03:01]} 8. Na3 {[%clk 0:03:04]}  b5 {[%clk 0:03:01]} 9. Bxf6 {[%clk 0:03:05]}  gxf6 {[%clk 0:03:00]} 10. Nd5 {[%clk 0:03:05]}  Bg7 {[%clk 0:03:00]} 11. Bd3 {[%clk 0:03:06]}  Ne7 {[%clk 0:02:51]} 12. c4 {[%clk 0:03:01]}  f5 {[%clk 0:02:49]} 13. exf5 {[%clk 0:02:48]}  Nxd5 {[%clk 0:02:39]} 14. cxd5 {[%clk 0:02:47]}  O-O {[%clk 0:02:39]} 15. O-O {[%clk 0:02:44]}  e4 {[%clk 0:02:37]} 16. Bxe4 {[%clk 0:02:43]}  Bxb2 {[%clk 0:02:38]} 17. Nc2 {[%clk 0:02:39]}  Bxa1 {[%clk 0:02:37]} 18. Qxa1 {[%clk 0:02:40]}  Qg5 {[%clk 0:02:37]} 19. f4 {[%clk 0:02:22]}  Qg7 {[%clk 0:02:30]} 20. f6 {[%clk 0:01:30]}  Qh6 {[%clk 0:02:29]} 21. Ne3 {[%clk 0:01:22]}  Kh8 {[%clk 0:02:26]} 22. Rf3 {[%clk 0:01:20]}  Rg8 {[%clk 0:02:23]} 23. Nf5 {[%clk 0:01:14]}  Qg6 {[%clk 0:02:07]} 24. Rg3 {[%clk 0:01:05]}  Bxf5 {[%clk 0:02:06]} 25. Rxg6 {[%clk 0:01:04]}  Bxg6 {[%clk 0:02:05]} 26. Bxg6 {[%clk 0:01:04]}  Rxg6 {[%clk 0:02:05]} 27. h3 {[%clk 0:00:31]}  Re8 {[%clk 0:02:00]} 28. g4 {[%clk 0:00:14]}  Re4 {[%clk 0:01:55]} 29. f5 {[%clk 0:00:07]}  Rg5 {[%clk 0:01:55]} 30. Kg2 {[%clk 0:00:03]}  h5 {[%clk 0:01:54]} 31. Qc1 {[%clk 0:00:04]}  Re2+ {[%clk 0:01:43]} 32. Kf3 {[%clk 0:00:03]}  hxg4+ {[%clk 0:01:37]} 33. Kxe2 {[%clk 0:00:03]}  Rxf5 {[%clk 0:01:32]} 34. Qh6+ {[%clk 0:00:03]}  Kg8 {[%clk 0:01:31]} 35. Qg7# {[%clk 0:00:04]} 1-0


[Site "https://www.chess.com"]

[Event "Titled Tuesday Blitz April 25 Early 2023"]
[White "Xie, Bryan"]
[Black "Lohani, Sujana"]
[WhiteFideId "30941296"]
[BlackFideId "12311987"]
[WhiteElo "2033"]
[BlackElo "1718"]
[Result "1-0"]
[Round "03"]
[TimeControl "180+2"]
[Date "2023.04.25"]
[WhiteClock "0:00:40"]
[BlackClock "0:00:02"]

1. e4 {[%clk 0:03:00]}  c6 {[%clk 0:02:30]} 2. d4 {[%clk 0:02:59]}  d5 {[%clk 0:02:30]} 3. Nc3 {[%clk 0:03:00]}  dxe4 {[%clk 0:02:27]} 4. Nxe4 {[%clk 0:03:01]}  Nf6 {[%clk 0:02:26]} 5. Nxf6+ {[%clk 0:02:58]}  exf6 {[%clk 0:02:19]} 6. c3 {[%clk 0:02:58]}  Bd6 {[%clk 0:01:56]} 7. Bd3 {[%clk 0:02:57]}  O-O {[%clk 0:01:55]} 8. Qc2 {[%clk 0:02:55]}  Re8+ {[%clk 0:01:46]} 9. Ne2 {[%clk 0:02:56]}  g6 {[%clk 0:01:44]} 10. Be3 {[%clk 0:02:57]}  b5 {[%clk 0:01:35]} 11. h4 {[%clk 0:02:54]}  f5 {[%clk 0:01:14]} 12. O-O-O {[%clk 0:02:48]}  b4 {[%clk 0:01:05]} 13. c4 {[%clk 0:02:47]}  Qa5 {[%clk 0:00:52]} 14. Kb1 {[%clk 0:02:42]}  f4 {[%clk 0:00:24]} 15. Bxf4 {[%clk 0:02:14]}  Bxf4 {[%clk 0:00:24]} 16. Nxf4 {[%clk 0:02:14]}  Nd7 {[%clk 0:00:20]} 17. h5 {[%clk 0:02:00]}  Qg5 {[%clk 0:00:18]} 18. hxg6 {[%clk 0:01:58]}  fxg6 {[%clk 0:00:16]} 19. Bxg6 {[%clk 0:01:43]}  hxg6 {[%clk 0:00:15]} 20. Nxg6 {[%clk 0:01:43]}  Nf6 {[%clk 0:00:09]} 21. Nh4 {[%clk 0:01:13]}  Kg7 {[%clk 0:00:08]} 22. Rde1 {[%clk 0:01:11]}  Rxe1+ {[%clk 0:00:07]} 23. Rxe1 {[%clk 0:01:12]}  Qxh4 {[%clk 0:00:06]} 24. Re7+ {[%clk 0:01:12]}  Kf8 {[%clk 0:00:06]} 25. Re1 {[%clk 0:01:00]}  Bf5 {[%clk 0:00:05]} 26. Qxf5 {[%clk 0:00:59]}  Qxd4 {[%clk 0:00:05]} 27. g4 {[%clk 0:00:49]}  Rd8 {[%clk 0:00:05]} 28. g5 {[%clk 0:00:47]}  Qd2 {[%clk 0:00:03]} 29. Qxf6+ {[%clk 0:00:47]}  Kg8 {[%clk 0:00:03]} 30. Qe6+ {[%clk 0:00:41]}  Kh7 {[%clk 0:00:04]} 31. Rh1+ {[%clk 0:00:39]}  Kg7 {[%clk 0:00:02]} 32. Qf6+ {[%clk 0:00:40]} 1-0


[Site "https://www.chess.com"]

[Event "Titled Tuesday Blitz April 25 Early 2023"]
[White "Lopez Del Alamo, Antonio"]
[Black "Sanchez, Robert"]
[WhiteFideId "2227339"]
[BlackFideId "2034360"]
[WhiteElo "2175"]
[BlackElo "1946"]
[Result "1-0"]
[Round "03"]
[TimeControl "180+2"]
[Date "2023.04.25"]
[WhiteClock "0:01:16"]
[BlackClock "0:01:28"]

1. e4 {[%clk 0:02:59]}  e6 {[%clk 0:03:00]} 2. d3 {[%clk 0:02:59]}  c5 {[%clk 0:02:59]} 3. Nf3 {[%clk 0:02:58]}  Nc6 {[%clk 0:03:00]} 4. g3 {[%clk 0:02:58]}  d6 {[%clk 0:03:01]} 5. Bg2 {[%clk 0:02:58]}  g6 {[%clk 0:03:01]} 6. O-O {[%clk 0:02:58]}  Bg7 {[%clk 0:03:02]} 7. c3 {[%clk 0:02:58]}  e5 {[%clk 0:03:02]} 8. a3 {[%clk 0:02:57]}  Nge7 {[%clk 0:03:03]} 9. b4 {[%clk 0:02:57]}  b6 {[%clk 0:03:01]} 10. b5 {[%clk 0:02:57]}  Nb8 {[%clk 0:03:01]} 11. c4 {[%clk 0:02:56]}  O-O {[%clk 0:03:01]} 12. Nc3 {[%clk 0:02:56]}  h6 {[%clk 0:03:01]} 13. a4 {[%clk 0:02:56]}  f5 {[%clk 0:03:01]} 14. a5 {[%clk 0:02:55]}  bxa5 {[%clk 0:02:57]} 15. Qa4 {[%clk 0:02:49]}  Nd7 {[%clk 0:02:56]} 16. Qxa5 {[%clk 0:02:48]}  Nb6 {[%clk 0:02:56]} 17. Bd2 {[%clk 0:02:46]}  Bb7 {[%clk 0:02:53]} 18. Qa2 {[%clk 0:02:41]}  f4 {[%clk 0:02:51]} 19. Na4 {[%clk 0:02:40]}  g5 {[%clk 0:02:50]} 20. Ba5 {[%clk 0:02:38]}  Ng6 {[%clk 0:02:48]} 21. Bh3 {[%clk 0:02:26]}  Bc8 {[%clk 0:02:33]} 22. Bxc8 {[%clk 0:02:20]}  Rxc8 {[%clk 0:02:21]} 23. Bxb6 {[%clk 0:02:15]}  axb6 {[%clk 0:02:21]} 24. Nc3 {[%clk 0:02:16]}  Qd7 {[%clk 0:02:13]} 25. Kg2 {[%clk 0:02:14]}  g4 {[%clk 0:01:57]} 26. Nd2 {[%clk 0:02:06]}  Rf7 {[%clk 0:01:51]} 27. Nd5 {[%clk 0:02:03]}  Qd8 {[%clk 0:01:44]} 28. Qa6 {[%clk 0:01:59]}  Qg5 {[%clk 0:01:43]} 29. Qxc8+ {[%clk 0:01:56]}  Kh7 {[%clk 0:01:42]} 30. Rad1 {[%clk 0:01:25]}  Qh5 {[%clk 0:01:35]} 31. h4 {[%clk 0:01:18]}  Nxh4+ {[%clk 0:01:31]} 32. gxh4 {[%clk 0:01:17]}  f3+ {[%clk 0:01:28]} 33. Kg3 {[%clk 0:01:16]} 1-0


[Site "https://www.chess.com"]

[Event "Titled Tuesday Blitz April 25 Early 2023"]
[White "Mammadov, Ziya"]
[Black "Szente Varga, Fruzsina"]
[WhiteFideId "13418890"]
[BlackFideId "712264"]
[WhiteElo "1583"]
[BlackElo "1994"]
[Result "0-1"]
[Round "03"]
[TimeControl "180+2"]
[Date "2023.04.25"]
[WhiteClock "0:00:06"]
[BlackClock "0:01:11"]

1. e4 {[%clk 0:03:00]}  Nf6 {[%clk 0:02:57]} 2. Nc3 {[%clk 0:02:58]}  d5 {[%clk 0:02:55]} 3. exd5 {[%clk 0:02:56]}  Nxd5 {[%clk 0:02:56]} 4. Nxd5 {[%clk 0:02:57]}  Qxd5 {[%clk 0:02:57]} 5. d4 {[%clk 0:02:57]}  g6 {[%clk 0:02:57]} 6. Nf3 {[%clk 0:02:57]}  Bg7 {[%clk 0:02:57]} 7. c4 {[%clk 0:02:56]}  Qe4+ {[%clk 0:02:54]} 8. Be2 {[%clk 0:02:54]}  O-O {[%clk 0:02:54]} 9. O-O {[%clk 0:02:55]}  Nc6 {[%clk 0:02:54]} 10. Be3 {[%clk 0:02:54]}  Bg4 {[%clk 0:02:51]} 11. h3 {[%clk 0:02:43]}  Bxf3 {[%clk 0:02:48]} 12. Bxf3 {[%clk 0:02:44]}  Qf5 {[%clk 0:02:48]} 13. g4 {[%clk 0:02:19]}  Qd7 {[%clk 0:02:46]} 14. d5 {[%clk 0:02:17]}  Ne5 {[%clk 0:02:46]} 15. Bg2 {[%clk 0:02:16]}  Nxc4 {[%clk 0:02:45]} 16. Bd4 {[%clk 0:02:15]}  Nd6 {[%clk 0:02:36]} 17. Bxg7 {[%clk 0:02:13]}  Kxg7 {[%clk 0:02:37]} 18. Qd4+ {[%clk 0:02:14]}  Kg8 {[%clk 0:02:38]} 19. Rfe1 {[%clk 0:02:13]}  Rad8 {[%clk 0:02:36]} 20. Qe5 {[%clk 0:02:08]}  Rfe8 {[%clk 0:02:36]} 21. Rac1 {[%clk 0:02:04]}  e6 {[%clk 0:02:35]} 22. Qf6 {[%clk 0:01:51]}  exd5 {[%clk 0:02:29]} 23. Bxd5 {[%clk 0:01:46]}  Rxe1+ {[%clk 0:02:28]} 24. Rxe1 {[%clk 0:01:46]}  Re8 {[%clk 0:02:24]} 25. Rd1 {[%clk 0:01:35]}  Qe7 {[%clk 0:02:20]} 26. Qc3 {[%clk 0:01:28]}  Qe2 {[%clk 0:02:17]} 27. Rf1 {[%clk 0:01:21]}  c6 {[%clk 0:02:16]} 28. Bb3 {[%clk 0:01:18]}  Qe5 {[%clk 0:02:11]} 29. Qd2 {[%clk 0:01:13]}  Nb5 {[%clk 0:02:04]} 30. Qd7 {[%clk 0:01:09]}  Re7 {[%clk 0:02:04]} 31. Qd8+ {[%clk 0:01:07]}  Kg7 {[%clk 0:02:05]} 32. Qd2 {[%clk 0:01:03]}  Nd4 {[%clk 0:02:04]} 33. Qd3 {[%clk 0:00:59]}  Ne2+ {[%clk 0:02:01]} 34. Kh1 {[%clk 0:00:53]}  Nf4 {[%clk 0:02:00]} 35. Qg3 {[%clk 0:00:36]}  Qe4+ {[%clk 0:01:56]} 36. f3 {[%clk 0:00:31]}  Qe2 {[%clk 0:01:47]} 37. Rf2 {[%clk 0:00:28]}  Qe1+ {[%clk 0:01:47]} 38. Kh2 {[%clk 0:00:29]}  Ne2 {[%clk 0:01:45]} 39. Qg2 {[%clk 0:00:19]}  Nd4 {[%clk 0:01:44]} 40. Bc4 {[%clk 0:00:15]}  Qe5+ {[%clk 0:01:33]} 41. f4 {[%clk 0:00:14]}  Qe3 {[%clk 0:01:31]} 42. Qg3 {[%clk 0:00:11]}  b5 {[%clk 0:01:21]} 43. Bb3 {[%clk 0:00:08]}  Nxb3 {[%clk 0:01:20]} 44. axb3 {[%clk 0:00:08]}  Qxg3+ {[%clk 0:01:21]} 45. Kxg3 {[%clk 0:00:08]}  Re3+ {[%clk 0:01:21]} 46. Rf3 {[%clk 0:00:09]}  Rxf3+ {[%clk 0:01:17]} 47. Kxf3 {[%clk 0:00:10]}  f5 {[%clk 0:01:18]} 48. g5 {[%clk 0:00:09]}  Kf7 {[%clk 0:01:17]} 49. Ke3 {[%clk 0:00:09]}  c5 {[%clk 0:01:17]} 50. Kd3 {[%clk 0:00:09]}  Ke6 {[%clk 0:01:17]} 51. Kc3 {[%clk 0:00:08]}  a5 {[%clk 0:01:12]} 52. Kd3 {[%clk 0:00:07]}  Kd5 {[%clk 0:01:12]} 53. Ke3 {[%clk 0:00:07]}  c4 {[%clk 0:01:11]} 54. bxc4+ {[%clk 0:00:06]}  Kxc4 {[%clk 0:01:12]} 55. Kd2 {[%clk 0:00:06]}  Kd4 {[%clk 0:01:11]} 56. Kc2 {[%clk 0:00:05]}  a4 {[%clk 0:01:11]} 57. Kd2 {[%clk 0:00:04]}  b4 {[%clk 0:01:12]} 58. Kc2 {[%clk 0:00:03]}  Ke4 {[%clk 0:01:11]} 59. b3 {[%clk 0:00:04]}  a3 {[%clk 0:01:10]} 60. Kb1 {[%clk 0:00:04]}  Kxf4 {[%clk 0:01:11]} 61. Kc2 {[%clk 0:00:04]}  Ke3 {[%clk 0:01:11]} 62. Kd1 {[%clk 0:00:03]}  f4 {[%clk 0:01:11]} 63. Kc2 {[%clk 0:00:03]}  f3 {[%clk 0:01:11]} 64. h4 {[%clk 0:00:04]}  f2 {[%clk 0:01:11]} 65. h5 {[%clk 0:00:04]}  f1=Q {[%clk 0:01:11]} 66. h6 {[%clk 0:00:05]}  Qd3+ {[%clk 0:01:11]} 67. Kc1 {[%clk 0:00:05]}  Qd2+ {[%clk 0:01:10]} 68. Kb1 {[%clk 0:00:06]}  Qb2# {[%clk 0:01:11]} 0-1


[Site "https://www.chess.com"]